fUSD/lending_fUSD_20240203
["ID","MTS","AMOUNT","RATE_DAILY","PERIOD"]
[313235095,1706987432362,-150.0,0.00022782,2]
[313235096,1706987432372,-150.0,0.000228,2]
[313235097,1706987432381,-150.0,0.00022805,2]
[313235098,1706987432390,-200.0,0.00022816,2]
[313235100,1706987432399,-800.0,0.00022816,2]
[313235102,1706987432408,-119.31302155,0.00022816,2]
[313235104,1706987432420,-380.67697845,0.00022816,2]
[313235106,1706987432429,-150.0,0.00022834,2]
[313235108,1706987432438,-150.0,0.00022839,2]
[313235110,1706987432447,-150.0,0.00022849,2]
[313235112,1706987432456,-150.0,0.0002285,2]
[313235114,1706987432466,-150.0,0.00022864,2]
[313235117,1706987432475,-150.0,0.00022867,2]
[313235120,1706987432483,-150.0,0.00022873,2]
[313235123,1706987432492,-150.0,0.00022875,2]
[313235126,1706987432502,-58.24228892,0.00022876,2]
[313235129,1706987432513,-91.75771108,0.00022876,2]
[313235132,1706987432523,-150.0,0.0002288,2]
[313235135,1706987432532,-150.0,0.00022881,2]
[313235138,1706987432540,-307.40170157,0.00022881,2]
[313235141,1706987432550,-179.83534167,0.00022897,3]
[313235144,1706987432559,-1247.27547151,0.00022897,2]
[313235147,1706987432570,-252.72452849,0.00022897,2]
[313235150,1706987432579,-51.11615753,0.000229,2]
[313235192,1706987438125,-3533.88886504,0.000229,2]
[313235193,1706987438183,-848.26710872,0.000229,2]
[313235194,1706987438239,-2840.39685999,0.000229,2]
[313235195,1706987438293,-18321.43320872,0.000229,2]
[313235196,1706987438303,-1419.71129395,0.000229,2]
[313235197,1706987438314,-554.88683913,0.000229,2]
[313235198,1706987438323,-276.23586116,0.000229,2]
[313235199,1706987438333,-1561.56709215,0.000229,2]
[313235200,1706987438345,-3438.43290785,0.000229,2]
[313235201,1706987438354,-469.329928,0.000229,6]
[313235202,1706987438363,-5404.84221391,0.000229,2]
[313235203,1706987438373,-1827.29868516,0.000229,2]
[313235204,1706987438382,-183.18964412,0.000229,2]
[313235205,1706987438391,-578.19241258,0.000229,2]
[313235206,1706987438400,-216.8229406,0.000229,2]
[313235207,1706987438409,-838.66352936,0.000229,2]
[313235208,1706987438419,-163.49976788,0.000229,2]
[313235209,1706987438430,-1500.0,0.00022921,2]
[313235210,1706987438440,-1500.0,0.00022932,2]
[313235211,1706987438449,-1500.0,0.00022934,2]
[313235212,1706987438459,-150.0,0.0002294,2]
[313235214,1706987438468,-1500.0,0.00022951,2]
[313235216,1706987438477,-300.0,0.00022959,2]
[313235218,1706987438487,-150.0,0.00022969,2]
[313235220,1706987438496,-1562.83568944,0.00022975,2]
[313235222,1706987438505,-150.0,0.00022981,2]
[313235223,1706987438516,-300.0,0.00022994,2]
[313235224,1706987438526,-350.40853474,0.00022995,3]
[313235225,1706987438535,-658.8804897,0.00022995,2]
[313235226,1706987438544,-1712.54729282,0.00022995,2]
[313235227,1706987438557,-1192.99019808,0.00022995,2]
[313235228,1706987438566,-1071.11632834,0.00022995,2]
[313235229,1706987438578,-1581.42226915,0.00022995,2]
[313235230,1706987438589,-7804.39286577,0.00022995,2]
[313235231,1706987438608,-1392.49898666,0.00022995,2]
[313235232,1706987438620,-363.73332867,0.00022995,2]
[313235233,1706987438631,-1292.62730849,0.00022995,2]
[313235234,1706987440655,-651.07946407,0.00022995,2]
[313235296,1706987444189,-408.65821158,0.00022993,2]
[313235297,1706987444198,-37529.54269155,0.00022995,2]
[313235298,1706987444207,-5567.6305842,0.00022998,2]
[313235299,1706987444216,-196.42295746,0.00022998,2]
[313235300,1706987444225,-2721.8262856,0.00022999,2]
[313235301,1706987444234,-500.0,0.00022999,2]
[313235302,1706987444244,-500.0,0.00022999,2]
[313235303,1706987444252,-500.0,0.00022999,2]
[313235304,1706987444261,-500.0,0.00022999,2]
[313235305,1706987444271,-500.0,0.00022999,2]
[313235306,1706987444280,-500.0,0.00022999,2]
[313235307,1706987444289,-500.0,0.00022999,2]
[313235308,1706987444298,-500.0,0.00022999,2]
[313235309,1706987444307,-500.0,0.00022999,2]
[313235310,1706987444316,-500.0,0.00022999,2]
[313235311,1706987444326,-500.0,0.00022999,2]
[313235312,1706987444335,-500.0,0.00022999,2]
[313235313,1706987444345,-500.0,0.00022999,2]
[313235314,1706987444354,-500.0,0.00022999,2]
[313235315,1706987444363,-500.0,0.00022999,2]
[313235316,1706987444372,-500.0,0.00022999,2]
[313235317,1706987444382,-500.0,0.00022999,2]
[313235318,1706987444391,-500.0,0.00022999,2]
[313235319,1706987444400,-500.0,0.00022999,2]
[313235321,1706987444410,-500.0,0.00022999,2]
[313235322,1706987444419,-500.0,0.00022999,2]
[313235323,1706987444428,-500.0,0.00022999,2]
[313235324,1706987444437,-255.18198034,0.00022999,2]
[313235325,1706987444446,-500.0,0.00022999,2]
[313235326,1706987444455,-500.0,0.00022999,2]
[313235327,1706987444465,-500.0,0.00022999,2]
[313235328,1706987444474,-500.0,0.00022999,2]
[313235329,1706987444483,-500.0,0.00022999,2]
[313235330,1706987444492,-500.0,0.00022999,2]
[313235331,1706987444501,-500.0,0.00022999,2]
[313235332,1706987444511,-500.0,0.00022999,2]
[313235333,1706987444520,-500.0,0.00022999,2]
[313235334,1706987444530,-500.0,0.00022999,2]
[313235335,1706987444539,-500.0,0.00022999,2]
[313235336,1706987444548,-500.0,0.00022999,2]
[313235337,1706987444558,-500.0,0.00022999,2]
[313235338,1706987444567,-500.0,0.00022999,2]
[313235339,1706987444577,-500.0,0.00022999,2]
[313235340,1706987444588,-1967.30599068,0.00022999,2]
[313235341,1706987444599,-288.54321521,0.00023,3]
[313235342,1706987444609,-676.0,0.00023,2]
[313235343,1706987444619,-526463.98489706,0.00023,3]
[313235344,1706987444629,-239.22622594,0.00023,3]
[313235345,1706987444639,-277872.11424398,0.00023,2]
[313235346,1706987444651,-3012.46293621,0.00023,2]
[313235347,1706987444663,-5020.71831872,0.00023,2]
[313235351,1706987446163,-347.41192985,0.00023,2]
[313235352,1706987446175,-75098.29086047,0.00023,2]
[313235353,1706987446220,-381.48536339,0.00023,2]
[313235354,1706987446275,-176644.38999159,0.00023,2]
[313235355,1706987446350,-10745.09763417,0.00023,2]
[313235356,1706987446364,-572.85,0.00023,2]
[313235384,1706987644608,206.0,0.00022018,2]
[313235385,1706987684189,150.44,0.0002243,2]
[313235386,1706987802470,737.6,0.0002223,2]
[313235387,1706987859233,151.0,0.00020221,2]
[313235388,1706987872698,155.0,0.00020221,2]
[313235389,1706987898881,155.0,0.00020221,2]
[313235390,1706987914887,155.0,0.00020221,2]
[313235391,1706987918491,352.75,0.00022,2]
[313235392,1706987932878,155.0,0.00020221,2]
[313235393,1706987951259,155.0,0.00020221,2]
[313235394,1706987970891,304.38702547,0.00020221,2]
[313235395,1706988114746,550.0,0.00022,3]
[313235396,1706988247884,409.92,0.00022153,2]
[313235397,1706988283743,151.0,0.00020234,2]
[313235398,1706988451664,-155.0,0.00022528,2]
[313235399,1706988451702,-163.42827114,0.00022529,2]
[313235400,1706988451739,-406.66784514,0.00022627,2]
[313235401,1706988451765,-150.0,0.00022628,2]
[313235402,1706988451806,-255.2164918,0.00022629,2]
[313235403,1706988451839,-58869.68739192,0.00022629,2]
[313235404,1706988493695,-289.61127276,0.00022628,2]
[313235405,1706988493724,-2710.38872724,0.00022629,2]
[313235406,1706988532893,-150.0,0.00022619,2]
[313235407,1706988532927,-50.0,0.00022629,2]
[313235429,1706988632661,-150.0,0.00022628,2]
[313235430,1706988632676,-329.70601001,0.00022629,2]
[313235431,1706988632698,-1603.04621236,0.00022629,2]
[313235432,1706988632808,-368.6445454,0.00022629,2]
[313235433,1706988632837,-16398.30073846,0.00022629,2]
[313235434,1706988632908,-827.84381737,0.00022629,2]
[313235435,1706988632924,-5795.42564703,0.00022629,2]
[313235436,1706988632941,-3485.27784583,0.00022629,2]
[313235437,1706988632957,-756.82565859,0.00022629,2]
[313235438,1706988632973,-963.54444357,0.00022629,2]
[313235439,1706988632989,-1553.06,0.00022629,2]
[313235440,1706988633019,-2784.51649125,0.00022629,2]
[313235441,1706988633051,-72305.32015282,0.00022629,2]
[313235442,1706988633072,-8743.87170433,0.00022629,2]
[313235443,1706988633104,-241.41640199,0.00022629,2]
[313235444,1706988633129,-1000.0,0.000227,2]
[313235445,1706988633156,-163.42827114,0.00022715,2]
[313235446,1706988633174,-150.0,0.00022743,2]
[313235447,1706988633210,-150.0,0.00022757,2]
[313235448,1706988633237,-1500.0,0.00022775,2]
[313235449,1706988633264,-150.0,0.00022777,2]
[313235450,1706988633287,-150.0,0.00022789,2]
[313235451,1706988633311,-24484.25965255,0.00022798,2]
[313235452,1706988633332,-1360.67194745,0.00022798,2]
[313235453,1706988633346,-150.0,0.0002281,2]
[313235454,1706988633381,-980.92,0.0002281,2]
[313235455,1706988633396,-8207.36042281,0.0002281,2]
[313235456,1706988633420,-431.72341497,0.0002281,2]
[313235457,1706988633440,-1360.90616222,0.0002281,2]
[313235458,1706988633462,-785.43730763,0.0002281,2]
[313235460,1706988633515,-2582.47269237,0.0002281,2]
[313235462,1706988633530,-150.0,0.00022813,2]
[313235464,1706988633555,-1500.0,0.00022814,2]
[313235466,1706988633577,-800.0,0.00022816,2]
[313235469,1706988633605,-150.0,0.00022816,2]
[313235471,1706988633638,-1500.0,0.00022828,2]
[313235473,1706988633658,-1500.0,0.00022846,2]
[313235474,1706988633678,-228.32754821,0.00022868,2]
[313235475,1706988633701,-1500.0,0.00022879,2]
[313235476,1706988633724,-1590.88647399,0.00022898,2]
[313235477,1706988633741,-220.98868892,0.00022898,2]
[313235478,1706988633760,-4902.30606262,0.00022898,2]
[313235479,1706988633782,-680.42030537,0.00022898,2]
[313235480,1706988633804,-680.42030538,0.00022898,2]
[313235481,1706988633824,-8559.5939,0.00022898,2]
[313235482,1706988633843,-1000.0,0.00022899,2]
[313235483,1706988633861,-3953.6861,0.000229,2]
[313235484,1706988633880,-499.99,0.000229,2]
[313235485,1706988633896,-153.43387784,0.000229,2]
[313235486,1706988633911,-5000.0,0.000229,2]
[313235487,1706988633928,-163.42827114,0.000229,2]
[313235488,1706988633944,-375.4639424,0.000229,6]
[313235489,1706988633966,-216.8229406,0.000229,2]
[313235490,1706988633987,-2968.11459704,0.000229,2]
[313235491,1706988634254,-166.91324174,0.000229,2]
[313235492,1706988634276,-248.14301214,0.000229,2]
[313235493,1706988634300,-163.49976788,0.000229,2]
[313235494,1706988634313,-559.10901956,0.000229,2]
[313235495,1706988634345,-150.0,0.00022945,2]
[313235496,1706988634363,-150.0,0.00022948,2]
[313235497,1706988634380,-150.0,0.00022968,2]
[313235498,1706988634396,-150.0,0.00022982,2]
[313235499,1706988634414,-150.0,0.0002299,2]
[313235500,1706988634433,-311.70538894,0.00022996,2]
[313235501,1706988634450,-240.30506348,0.00022997,2]
[313235502,1706988634466,-10512.98839623,0.00022997,2]
[313235503,1706988634480,-500.0,0.00022997,2]
[313235504,1706988634494,-375.51819804,0.00022997,2]
[313235505,1706988634511,-500.0,0.00022997,2]
[313235506,1706988634530,-500.0,0.00022997,2]
[313235507,1706988634546,-178.0784644,0.00022998,2]
[313235508,1706988634572,-605.0,0.00022998,2]
[313235509,1706988634594,-70444.9244803,0.00022998,3]
[313235510,1706988634620,-587.5153374,0.00022998,3]
[313235511,1706988634651,-1502.28437207,0.00022998,3]
[313235512,1706988634692,-250.0,0.00022998,3]
[313235513,1706988634714,-662.815,0.00022998,3]
[313235514,1706988634744,-214784.45325876,0.00022998,3]
[313235515,1706988634759,-525.79986187,0.00022998,2]
[313235516,1706988634777,-19053.02700194,0.00022998,2]
[313235517,1706988634793,-231.42613239,0.00022998,2]
[313235518,1706988634809,-1022.3080561,0.00022998,2]
[313235519,1706988634826,-156.30183788,0.00022998,2]
[313235520,1706988634846,-697.90157938,0.00022998,2]
[313235521,1706988634871,-400.0,0.00022998,2]
[313235522,1706988635088,-199.27008978,0.00022998,2]
[313235523,1706988635109,-581.70009375,0.00022998,2]
[313235524,1706988635137,-343.06270534,0.00022998,2]
[313235525,1706988635169,-197.15492761,0.00022998,2]
[313235526,1706988635193,-155.0,0.00022998,2]
[313235527,1706988635213,-392.32417861,0.00022998,2]
[313235528,1706988635230,-302.84837453,0.00022998,2]
[313235529,1706988635250,-265.60479765,0.00022998,2]
[313235530,1706988635267,-338.32247396,0.00022998,2]
[313235531,1706988635287,-860.83950855,0.00022998,2]
[313235532,1706988635300,-155.0,0.00022998,2]
[313235533,1706988635527,-362.44210625,0.00022998,2]
[313235534,1706988635571,-303.66693744,0.00022998,2]
[313235535,1706988635595,-2142.39385977,0.00022998,2]
[313235536,1706988635615,-344.74329012,0.00022998,2]
[313235537,1706988635646,-327.82736253,0.00022998,2]
[313235538,1706988635676,-280.96111801,0.00022998,2]
[313235539,1706988635692,-292.70291374,0.00022998,2]
[313235540,1706988635716,-474.20164571,0.00022998,2]
[313235541,1706988635739,-10473.64165747,0.00022998,2]
[313235542,1706988635755,-6441.03694263,0.00022998,2]
[313235543,1706988635777,-155.0,0.00022998,2]
[313235544,1706988635797,-57057.21926693,0.00022998,2]
[313235545,1706988639037,-543.68032293,0.00022998,2]
[313235546,1706988639069,-3.31967707,0.00022998,2]
[313235547,1706988639087,-1295.69522084,0.00022998,2]
[313235548,1706988639108,-6641.09718764,0.00022998,2]
[313235549,1706988639122,-559.955,0.00022998,2]
[313235550,1706988639136,-652.69310717,0.00022998,2]
[313235551,1706988639149,-2101.5,0.00022998,2]
[313235552,1706988639171,-631.866985,0.00022998,2]
[313235553,1706988639199,-17169.75641424,0.00022998,2]
[313235554,1706988639228,-4669.94190803,0.00022998,2]
[313235555,1706988639254,-240960.29502585,0.00022998,2]
[313235556,1706988639277,-5067.72629651,0.00022998,2]
[313235557,1706988639297,-2183.19584611,0.00022998,2]
[313235558,1706988639320,-3077.77406271,0.00022998,2]
[313235559,1706988639359,-4700.70633992,0.00022998,2]
[313235560,1706988639382,-578.267575,0.00022998,2]
[313235674,1706988641533,-1057.19,0.00022998,2]
[313235692,1706988641899,-37.40635982,0.00022998,2]
[313235728,1706988642641,-1242.08461943,0.00022998,2]
[313235730,1706988642659,-59069.89416672,0.00022998,2]
[313235735,1706988642759,-81650.56785253,0.00022998,2]
[313235739,1706988642809,-30667.09225889,0.00022998,2]
[313235939,1706988646912,-813.26,0.00022998,2]
[313235951,1706988647161,-752.20274444,0.00022998,2]
[313235953,1706988647177,-409.248,0.00022998,2]
[313235956,1706988647205,-3975.58146488,0.00022998,2]
[313235965,1706988647418,-177711.92482709,0.00022998,2]
[313235967,1706988647438,-39194.97845797,0.00022998,2]
[313235969,1706988647457,-155.0,0.00022998,2]
[313235971,1706988647469,-314.91414561,0.00022998,2]
[313235973,1706988647497,-488.19421159,0.00022998,2]
[313235975,1706988647514,-543.89474712,0.00022998,2]
[313235977,1706988647530,-220.10875743,0.00022998,2]
[313235979,1706988647554,-2667.07296721,0.00022998,2]
[313235980,1706988647574,-390.90216645,0.00022998,2]
[313235982,1706988647592,-310.77911582,0.00022998,2]
[313235984,1706988647613,-1757.69731679,0.00022999,2]
[313235986,1706988647627,-164.0,0.00022999,2]
[313235988,1706988647644,-23932.55608075,0.00022999,2]
[313235990,1706988647659,-1000.0,0.00022999,2]
[313235992,1706988647676,-3306.75797983,0.00022999,2]
[313235994,1706988647689,-1000.0,0.00022999,2]
[313235997,1706988647711,-731495.68305113,0.00023,2]
[313236008,1706988647941,-16363.98208703,0.00023,2]
[313236010,1706988647969,-1000.0,0.00023,2]
[313236241,1706988681937,-803.46543159,0.00022999,2]
[313236242,1706988681950,-31.90154539,0.00022999,2]
[313236243,1706988682048,-968.00706461,0.00022999,2]
[313236244,1706988682076,-4074.32780578,0.00023,2]
[313236245,1706988682260,-481.86831395,0.00023,2]
[313236246,1706988682538,-6977.6865825,0.00023,2]
[313236247,1706988682857,-293.91889801,0.00023,2]
[313236248,1706988724296,206.0,0.00022471,2]
[313236249,1706988732745,150.4,0.00020874,2]
[313236250,1706989157918,327.94,0.00022295,2]
[313236251,1706989169290,150.4,0.00020377,2]
[313236252,1706989214626,200.0,0.00022201,2]
[313236253,1706989457253,-489.93939145,0.00022626,2]
[313236254,1706989457327,-1510.06060855,0.00022627,2]
[313236255,1706989457970,-324.00130042,0.00022627,2]
[313236256,1706989458009,-1675.99869958,0.00022627,2]
[313236257,1706989458806,-158.06320939,0.00022627,2]
[313236258,1706989458862,-1834.06190897,0.00022627,2]
[313236259,1706989458905,-7.87488164,0.00022627,2]
[313236260,1706989459354,-1826.18702733,0.00022627,2]
[313236261,1706989459558,-173.81297267,0.00022627,2]
[313236262,1706989467068,-1335.3,0.00022627,2]
[313236263,1706989514319,161.72373742,0.00020364,2]
[313236264,1706989595261,737.64,0.00022066,2]
[313236265,1706989626973,150.4,0.0002008,2]
[313236297,1706989831608,-530.85903032,0.00022601,2]
[313236299,1706989831619,-365.30630905,0.00022602,2]
[313236302,1706989831630,-293.04765868,0.00022602,2]
[313236304,1706989831640,-150.0,0.00022609,2]
[313236306,1706989831652,-51744.85307475,0.0002261,2]
[313236309,1706989831675,-1084.12977769,0.0002261,2]
[313236312,1706989831689,-824.0,0.0002261,2]
[313236314,1706989831701,-1070.27529627,0.0002261,2]
[313236327,1706989831807,-0.17892998,0.0002261,2]
[313236330,1706989831825,-27234.66682131,0.0002261,2]
[313236333,1706989831835,-18967.23254359,0.00022617,2]
[313236336,1706989831845,-2722.20803999,0.00022618,2]
[313236339,1706989831856,-6132.94652445,0.00022619,2]
[313236343,1706989831869,-350.0,0.00022619,2]
[313236347,1706989831882,-318.01504645,0.00022619,2]
[313236350,1706989831895,-544.127513,0.00022619,2]
[313236355,1706989831908,-543.83,0.00022619,2]
[313236358,1706989831926,-4096.43565367,0.00022619,2]
[313236398,1706989837617,-1088.16047109,0.00022619,2]
[313236399,1706989837630,-580.4,0.00022619,2]
[313236410,1706989840858,-1360.95578977,0.00022619,2]
[313236411,1706989840868,-341.87083974,0.00022626,2]
[313236412,1706989840878,-599.39571096,0.00022627,2]
[313236413,1706989840889,-280.11299096,0.00022627,2]
[313236414,1706989840898,-155.08954157,0.00022627,2]
[313236415,1706989840907,-525.29809218,0.00022627,2]
[313236416,1706989840918,-943.91285857,0.00022627,2]
[313236417,1706989840927,-75960.71445683,0.00022629,2]
[313236418,1706989840936,-7841.41537069,0.00022629,2]
[313236419,1706989840946,-4444.45,0.00022629,2]
[313236420,1706989840956,-23912.7745,0.0002271,2]
[313236421,1706989840965,-687.35,0.0002277,2]
[313236422,1706989840974,-499.99,0.0002277,2]
[313236423,1706989840983,-2211.585,0.000228,2]
[313236424,1706989840992,-200.0,0.00022816,2]
[313236425,1706989841001,-800.0,0.00022816,2]
[313236426,1706989841012,-200.0,0.00022816,2]
[313236428,1706989841021,-206.0,0.00022883,2]
[313236430,1706989841030,-1802.47600032,0.00022896,2]
[313236451,1706989842567,-8950.12129968,0.00022896,2]
[313236452,1706989842576,-10293.2128,0.00022898,2]
[313236453,1706989842585,-153.48103024,0.000229,2]
[313236454,1706989842594,-1862.3590936,0.000229,2]
[313236455,1706989842603,-5000.0,0.000229,2]
[313236456,1706989842613,-176.79095112,0.000229,2]
[313236457,1706989842622,-1625.27834334,0.000229,2]
[313236458,1706989842631,-170.15365364,0.000229,2]
[313236459,1706989842640,-216.8229406,0.000229,2]
[313236460,1706989842649,-578.19241258,0.000229,2]
[313236461,1706989842658,-372.73934638,0.000229,2]
[313236462,1706989842668,-1122.67821581,0.00022996,2]
[313236463,1706989842677,-204.81978784,0.00022996,2]
[313236464,1706989842686,-337.02583242,0.00022996,2]
[313236465,1706989842695,-383.55337312,0.00022996,2]
[313236466,1706989842704,-304.24936636,0.00022996,2]
[313236467,1706989842713,-196.89353591,0.00022996,2]
[313236468,1706989842722,-155.70493333,0.00022998,2]
[313236469,1706989842731,-931.95145673,0.00022998,2]
[313236470,1706989842740,-1133.44014387,0.00022998,2]
[313236471,1706989842749,-473.99974479,0.00022998,2]
[313236472,1706989842758,-27012.39448358,0.00022998,2]
[313236473,1706989842767,-1419.37423398,0.00022998,2]
[313236474,1706989842777,-207.15952483,0.00022998,2]
[313236475,1706989842786,-419.13902718,0.00022998,2]
[313236476,1706989842795,-243.40858402,0.00022999,2]
[313236477,1706989842804,-734.9295536,0.00022999,2]
[313236478,1706989842813,-1234.22666792,0.00022999,2]
[313236479,1706989842822,-3306.75797983,0.00022999,2]
[313236480,1706989842831,-300.02,0.00022999,2]
[313236481,1706989842840,-208.39091089,0.00022999,2]
[313236482,1706989842849,-180.0,0.00022999,2]
[313236483,1706989842859,-144115.99622427,0.00023,3]
[313236484,1706989842868,-97151.86257854,0.00023,2]
[313236485,1706989842877,-107953.86839077,0.00023,2]
[313236492,1706989845532,-355.61296487,0.00022999,2]
[313236495,1706989845543,-10956.07712749,0.00023,2]
[313236497,1706989845555,-2547.5,0.00023,2]
[313236498,1706989845567,-735.9234,0.00023,2]
[313236499,1706989845579,-1660.0,0.00023,2]
[313236500,1706989845591,-503.5,0.00023,2]
[313236501,1706989845604,-842.0,0.00023,2]
[313236502,1706989845620,-292.59554721,0.00022999,2]
[313236503,1706989845630,-2611.97761786,0.00023,2]
[313236504,1706989845642,-367.13819622,0.00023,2]
[313236505,1706989845654,-10289.99999999,0.00023,2]
[313236506,1706989845666,-51422.37386909,0.00023,2]
[313236507,1706989845678,-8843.92475302,0.00023,2]
[313236508,1706989845692,-438226.56339577,0.00023,2]
[313236509,1706989845701,-100741.1936347,0.00023,2]
[313236510,1706989845715,-10023.77322503,0.00023,2]
[313236511,1706989845728,-5570.45453968,0.00023,2]
[313236512,1706989845741,-5617.7333,0.00023,2]
[313236513,1706989845754,-1136.31970679,0.00023,2]
[313236514,1706989845767,-4090.62475993,0.00023,2]
[313236515,1706989845807,-17749.21366054,0.00023,2]
[313236516,1706989845862,-858.9596004,0.00023,2]
[313236517,1706989845875,-950.0,0.00023,2]
[313236518,1706989845887,-5208.30582001,0.00023,2]
[313236525,1706989923394,1349.37814829,0.00022076,2]
[313236526,1706989937621,550.0,0.00022,3]
[313236527,1706989971733,155.18552147,0.00021846,2]
[313236528,1706989972272,155.0,0.00022,2]
[313236529,1706989973181,197.46197504,0.00022076,2]
[313236530,1706989975036,209.95856334,0.00020466,2]
[313236531,1706989975126,267.57153281,0.00022,2]
[313236532,1706989975283,235.10419243,0.00022,2]
[313236533,1706989975642,164.63045617,0.00022,2]
[313236534,1706989976083,155.0,0.00022,2]
[313236535,1706989976118,1244.37168122,0.000225,2]
[313236536,1706989976249,296.47071973,0.000225,2]
[313236537,1706989976641,209.71304391,0.00022,2]
[313236538,1706989976842,283.69730262,0.00022,2]
[313236539,1706989977809,285.16657938,0.00022,2]
[313236540,1706989978524,155.0,0.00020696,2]
[313236541,1706989978679,174.68,0.00017878,2]
[313236542,1706989978876,174.68,0.00022348,2]
[313236543,1706989979414,250.07664637,0.00022,4]
[313236544,1706989980071,226.54843448,0.00022,2]
[313236545,1706989980116,268.10986261,0.00022,2]
[313236546,1706989980747,190.44595438,0.00022,2]
[313236547,1706989981308,226.35508552,0.00022,2]
[313236548,1706989982010,232.82031935,0.000225,2]
[313236549,1706989982874,216.32078387,0.000225,2]
[313236550,1706989983498,267.66635624,0.00022,2]
[313236551,1706989983616,307.49167908,0.0002,2]
[313236552,1706989984290,206.98322116,0.00021846,7]
[313236553,1706989984318,155.0,0.00022,2]
[313236554,1706989984393,155.0,0.00022,2]
[313236555,1706989984890,218.69657576,0.000225,2]
[313236556,1706989985079,198.55528335,0.00022,2]
[313236557,1706989987087,257.62281522,0.00022,2]
[313236558,1706989987280,155.0,0.00022,2]
[313236559,1706989989020,155.0,0.00022,2]
[313236560,1706989989854,289.93338006,0.000225,2]
[313236561,1706989990087,162.31856081,0.000225,2]
[313236562,1706989990718,276.25977715,0.00022,2]
[313236563,1706989990907,193.35546223,0.00020696,2]
[313236564,1706989990950,7942.57,0.00022256,2]
[313236565,1706989991118,267.13469851,0.00022,2]
[313236566,1706989992256,199.51464128,0.00022,2]
[313236567,1706989993382,365.30630905,0.00022499,2]
[313236568,1706989993551,500.0,0.00022,2]
[313236569,1706989994316,500.0,0.00022,2]
[313236570,1706989995516,500.0,0.00022,2]
[313236571,1706989996123,155.0,0.00022,2]
[313236572,1706989996300,500.0,0.00022,2]
[313236573,1706989996519,155.0,0.00020696,2]
[313236574,1706989996829,283.69730262,0.00022,2]
[313236575,1706989997079,500.0,0.00022,2]
[313236576,1706989997750,342.63340177,0.00022,2]
[313236577,1706989997780,285.16657938,0.00022,2]
[313236578,1706989997841,500.0,0.00022,2]
[313236579,1706989998606,500.0,0.00022,2]
[313236580,1706989999425,500.0,0.00022,2]
[313236581,1706990000121,500.0,0.00022,2]
[313236582,1706990000391,219.54644771,0.00022,2]
[313236583,1706990000892,500.0,0.00022,2]
[313236584,1706990001679,500.0,0.00022,2]
[313236585,1706990002432,500.0,0.00022,2]
[313236586,1706990003187,500.0,0.00022,2]
[313236587,1706990003934,500.0,0.00022,2]
[313236588,1706990004302,226.16609982,0.00022,2]
[313236589,1706990004695,500.0,0.00022,2]
[313236590,1706990005464,500.0,0.00022,2]
[313236591,1706990005812,959.94,0.00022035,2]
[313236592,1706990005859,150.0,0.00022478,2]
[313236593,1706990006312,500.0,0.00022,2]
[313236594,1706990007019,500.0,0.00022,2]
[313236595,1706990007766,500.0,0.00022,2]
[313236596,1706990008514,500.0,0.00022,2]
[313236597,1706990008984,155.0,0.00022,2]
[313236598,1706990009264,500.0,0.00022,2]
[313236599,1706990010016,500.0,0.00022,2]
[313236600,1706990010755,500.0,0.00022,2]
[313236601,1706990011534,500.0,0.00022,2]
[313236602,1706990012291,500.0,0.00022,2]
[313236603,1706990012831,241.89791749,0.00022,2]
[313236604,1706990013042,500.0,0.00022,2]
[313236605,1706990013802,500.0,0.00022,2]